fUSD/lending_fUSD_20240616
["ID","MTS","AMOUNT","RATE_DAILY","PERIOD"]
[329612092,1718503879011,-500.0,0.00022191,3]
[329612093,1718503879028,-536.01005465,0.00022191,3]
[329612094,1718503879056,-856.86,0.00022191,3]
[329612095,1718503879069,-500.0,0.00022191,3]
[329612096,1718503879085,-500.0,0.00022191,3]
[329612097,1718503879110,-500.0,0.00022191,3]
[329612098,1718503879132,-500.0,0.00022191,3]
[329612099,1718503879151,-500.0,0.00022191,3]
[329612100,1718503879190,-535.53759286,0.00022191,3]
[329612101,1718503879214,-500.0,0.00022191,3]
[329612102,1718503879233,-500.0,0.00022191,3]
[329612103,1718503879258,-500.0,0.00022191,3]
[329612104,1718503879279,-500.0,0.00022191,3]
[329612105,1718503879320,-502.74685212,0.00022191,3]
[329612106,1718503879333,-500.0,0.00022191,3]
[329612107,1718503879344,-500.0,0.00022191,3]
[329612108,1718503879361,-736.78,0.00022191,3]
[329612109,1718503879377,-668.7,0.00022191,3]
[329612110,1718503879392,-500.0,0.00022191,3]
[329612111,1718503879412,-500.0,0.00022191,3]
[329612112,1718503879447,-500.0,0.00022191,3]
[329612113,1718503879475,-802.01,0.00022191,3]
[329612114,1718503879492,-500.0,0.00022191,3]
[329612115,1718503879504,-500.0,0.00022191,3]
[329612116,1718503879524,-500.0,0.00022191,3]
[329612117,1718503879536,-500.0,0.00022191,3]
[329612118,1718503879550,-558.96,0.00022191,3]
[329612119,1718503879571,-500.0,0.00022191,3]
[329612120,1718503879582,-500.0,0.00022191,3]
[329612121,1718503879593,-783.11,0.00022191,3]
[329612122,1718503879604,-500.0,0.00022191,3]
[329612123,1718503879616,-500.0,0.00022191,3]
[329612124,1718503879643,-500.0,0.00022191,3]
[329612125,1718503879653,-500.0,0.00022191,3]
[329612126,1718503879665,-500.0,0.00022191,3]
[329612127,1718503879678,-500.0,0.00022191,3]
[329612128,1718503879692,-500.0,0.00022191,3]
[329612129,1718503879706,-500.0,0.00022191,3]
[329612130,1718503879717,-500.0,0.00022191,3]
[329612131,1718503879728,-500.0,0.00022191,3]
[329612132,1718503879742,-500.0,0.00022191,3]
[329612133,1718503879760,-576.80132249,0.00022191,3]
[329612134,1718503879772,-1031.56,0.00022191,3]
[329612135,1718503879788,-500.0,0.00022191,3]
[329612136,1718503879805,-500.0,0.00022191,3]
[329612137,1718503879816,-500.0,0.00022191,3]
[329612138,1718503879830,-500.0,0.00022191,3]
[329612139,1718503879842,-500.0,0.00022191,3]
[329612140,1718503879856,-526.19606477,0.00022191,3]
[329612141,1718503879876,-500.0,0.00022191,3]
[329612142,1718503879888,-586.75,0.00022191,3]
[329612143,1718503879899,-500.0,0.00022191,3]
[329612144,1718503879927,-500.0,0.00022191,3]
[329612145,1718503879940,-500.0,0.00022191,3]
[329612146,1718503879954,-500.0,0.00022191,3]
[329612147,1718503879979,-500.0,0.00022191,3]
[329612148,1718503879997,-500.0,0.00022191,3]
[329612149,1718503880016,-500.0,0.00022191,3]
[329612150,1718503880035,-500.0,0.00022191,3]
[329612151,1718503880062,-500.0,0.00022191,3]
[329612152,1718503880075,-396.26768828,0.00022191,3]
[329612153,1718503880098,-500.0,0.00022191,3]
[329612154,1718503880109,-500.0,0.00022191,3]
[329612155,1718503880132,-410.90359929,0.00022191,3]
[329612156,1718503882980,-500.0,0.00021917,2]
[329612157,1718503882997,-500.0,0.00021917,2]
[329612158,1718503883009,-588.32640071,0.00022191,3]
[329612159,1718503883020,-500.0,0.00022191,3]
[329612160,1718503883038,-1.2417784,0.00022191,3]
[329612161,1718503883711,-224.44503766,0.00021916,2]
[329612162,1718503883723,-215.30610704,0.00021917,2]
[329612163,1718503886404,-288.00971524,0.00021915,2]
[329612164,1718503886422,-155.06779678,0.00021916,2]
[329612165,1718503886434,-556.92248798,0.00021916,2]
[329612166,1718503886461,-983.86902031,0.00021916,2]
[329612167,1718503886836,-585.22668101,0.00021916,2]
[329612168,1718503886850,-2055.95637963,0.00021916,2]
[329612169,1718503886977,-1232.59825842,0.00021916,2]
[329612170,1718503887010,-375.93228978,0.00021916,2]
[329612183,1718504602316,1839.4087317,0.00027,60]
[329612186,1718504837216,-1428.153875,0.00017073,2]
[329612187,1718504837254,-279.27738577,0.00017159,2]
[329612188,1718504837321,-158.24181041,0.0001781,2]
[329612189,1718504837354,-966.856,0.0001791,2]
[329612190,1718504837404,-602.84,0.00018121,2]
[329612191,1718504837455,-150.0,0.00019451,2]
[329612192,1718504837489,-150.0,0.00019451,2]
[329612193,1718504837526,-174.93,0.00019815,2]
[329612194,1718504837558,-250.0,0.00019853,2]
[329612195,1718504837593,-1000.0,0.00019867,2]
[329612196,1718504837624,-151.77,0.00019977,2]
[329612197,1718504837655,-13812.52474336,0.0002,2]
[329612202,1718505033814,-441.65691357,0.000199,2]
[329612203,1718505034360,-158.58468643,0.000199,2]
[329612204,1718505034375,-512.20225805,0.000199,3]
[329612205,1718505034722,-13.04907846,0.000199,3]
[329612206,1718505034743,-525.25133651,0.000199,3]
[329612207,1718505034755,-489.10258101,0.00019978,2]
[329612208,1718505034820,-510.89741899,0.00019978,2]
[329612209,1718505034833,-6187.47525664,0.0002,2]
[329612210,1718505034845,-155.0,0.0002,2]
[329612211,1718505034869,-466.026518,0.0002,2]
[329612218,1718505039138,-1520.60108001,0.0002,2]
[329612219,1718505039265,-760.05397092,0.0002,2]
[329612220,1718505039519,-11991.44661546,0.0002,2]
[329612221,1718505039648,-10154.332175,0.0002,2]
[329612233,1718505040432,-453.72,0.0002,2]
[329612237,1718505040509,-0.05337779,0.0002,2]
[329612240,1718505041229,-9678.32195852,0.0002,2]
[329612241,1718505041275,-1048.34273564,0.0002,2]
[329612242,1718505041309,-263.13724632,0.0002,2]
[329612243,1718505041332,-3937.82545528,0.0002,2]
[329612251,1718505045084,-74.86455028,0.0002,2]
[329612252,1718505045113,-1144.36375668,0.0002,2]
[329612253,1718505045432,-1113.47065865,0.0002,2]
[329612254,1718505045447,-223.49070526,0.0002001,2]
[329612255,1718505045527,-3433.89629474,0.0002001,2]
[329612256,1718505045545,-3602.298,0.0002001,2]
[329612257,1718505045560,-3721.699,0.0002001,2]
[329612258,1718505045573,-1000.0,0.00020144,2]
[329612259,1718505045584,-3634.998,0.00020155,2]
[329612260,1718505045598,-602.84,0.00020385,2]
[329612261,1718505045615,-2043.09914976,0.00020776,2]
[329612262,1718505045640,-2252.08694661,0.00020776,2]
[329612263,1718505045651,-535.11596453,0.00020776,2]
[329612264,1718505045663,-21.64718243,0.00020777,2]
[329612265,1718505045728,-489.29187735,0.00020777,2]
[329612266,1718505045860,-13.48485954,0.00020777,2]
[329612267,1718505045876,-155.28605315,0.00020777,2]
[329612268,1718505045889,-493.79039357,0.00020778,2]
[329612269,1718505046327,-695.84866301,0.00020778,2]
[329612270,1718505046347,-581.20762863,0.00020778,2]
[329612272,1718505047438,-731.4392052,0.00020778,2]
[329612273,1718505047462,-304.184176,0.00020778,2]
[329612274,1718505047596,-412.74691942,0.00020778,2]
[329612275,1718505047906,-384.644286,0.00020778,2]
[329612276,1718505047924,-1209.47228667,0.00020778,2]
[329612277,1718505047950,-1070.09403584,0.00020778,2]
[329612278,1718505047973,-2502.56362629,0.00020778,2]
[329612279,1718505047987,-3799.999993,0.00020778,2]
[329612280,1718505048001,-2743.43994,0.00020778,2]
[329612282,1718505048015,-2391.02273755,0.00020778,2]
[329612283,1718505048077,-403.22850324,0.00020778,2]
[329612284,1718505048106,-576.80320054,0.00020778,2]
[329612285,1718505048646,-294.34624392,0.00020778,2]
[329612286,1718505048661,-404.4192757,0.00020778,2]
[329612287,1718505048683,-9491.1,0.00020778,2]
[329612288,1718505048796,-2270.11185311,0.00020778,2]
[329612289,1718505048815,-4506.06258621,0.00020778,2]
[329612290,1718505048859,-276.90558802,0.00020778,2]
[329612291,1718505048887,-8169.78855808,0.00020778,2]
[329612292,1718505048910,-30000.0,0.00021,3]
[329612293,1718505048925,-3231.38363105,0.00021,2]
[329612294,1718505048948,-202.011918,0.000211,2]
[329612295,1718505048964,-3231.38363104,0.00021204,2]
[329612296,1718505048978,-3231.38363104,0.00021409,2]
[329612297,1718505048994,-3231.38363104,0.00021613,2]
[329612298,1718505049007,-1000.0,0.00021816,2]
[329612299,1718505049024,-500.0,0.00021817,2]
[329612300,1718505049037,-1000.0,0.00021817,2]
[329612301,1718505049075,-300.0,0.00021817,2]
[329612302,1718505049101,-3231.38363104,0.00021817,2]
[329612303,1718505049133,-324.45517282,0.00021817,2]
[329612304,1718505049148,-170.41117185,0.00021818,2]
[329612305,1718505049181,-3686.498,0.00021827,2]
[329612306,1718505049193,-979.0,0.000219,4]
[329612307,1718505049205,-150.0,0.000219,2]
[329612308,1718505049221,-1858.479336,0.000219,5]
[329612309,1718505049233,-179.14193524,0.00021915,2]
[329612310,1718505049256,-1046.65554681,0.00021915,2]
[329612311,1718505049274,-169.11079098,0.00021916,2]
[329612312,1718505049313,-20465.4176274,0.00021916,2]
[329612313,1718505049325,-5385.62691901,0.00021916,2]
[329612314,1718505049353,-1364.1706901,0.00021916,2]
[329612315,1718505049381,-274.32608325,0.00021916,2]
[329612316,1718505049405,-431.83955693,0.00021917,2]
[329612317,1718505049416,-500.0,0.00021917,2]
[329612318,1718505049448,-497.07080888,0.00021917,2]
[329612319,1718505049459,-500.0,0.00021917,2]
[329612320,1718505049481,-503.66022438,0.00021917,2]
[329612321,1718505049494,-547.48496969,0.00021917,2]
[329612322,1718505049507,-500.0,0.00021917,2]
[329612323,1718505049518,-500.0,0.00021917,2]
[329612324,1718505049530,-495.34028572,0.00021917,2]
[329612325,1718505049558,-237.1497434,0.00021917,2]
[329612326,1718505049572,-190.82310101,0.00021917,2]
[329612327,1718505049586,-500.0,0.00021917,2]
[329612328,1718505049598,-500.0,0.00021917,2]
[329612329,1718505049613,-500.0,0.00021917,2]
[329612330,1718505049625,-500.0,0.00021917,2]
[329612331,1718505049643,-500.0,0.00021917,2]
[329612332,1718505049654,-500.0,0.00021917,2]
[329612333,1718505049665,-500.0,0.00021917,2]
[329612334,1718505049678,-500.0,0.00021917,2]
[329612335,1718505049697,-500.0,0.00021917,2]
[329612336,1718505049715,-514.72075407,0.00021917,2]
[329612337,1718505049725,-500.0,0.00021917,2]
[329612338,1718505049736,-500.0,0.00021917,2]
[329612339,1718505049749,-500.0,0.00021917,2]
[329612340,1718505049760,-500.0,0.00021917,2]
[329612341,1718505049772,-500.0,0.00021917,2]
[329612342,1718505049788,-541.85595745,0.00021917,2]
[329612343,1718505049801,-574.46,0.00021917,2]
[329612344,1718505049829,-500.0,0.00021917,2]
[329612345,1718505049846,-500.0,0.00021917,2]
[329612346,1718505049857,-367.37608399,0.00021917,2]
[329612347,1718505050124,-132.62391601,0.00021917,2]
[329612348,1718505050135,-500.0,0.00021917,2]
[329612349,1718505050150,-400.97329322,0.00021917,2]
[329612354,1718505050406,-99.02670678,0.00021917,2]
[329612355,1718505050429,-437.73548323,0.00021917,2]
[329612356,1718505050444,-228.43383404,0.00021917,2]
[329612357,1718505050466,-278.52095272,0.00021917,2]
[329612358,1718505050488,-500.0,0.00021917,2]
[329612359,1718505050502,-500.0,0.00021917,2]
[329612360,1718505050513,-500.0,0.00021917,2]
[329612361,1718505050536,-527.02267883,0.00021917,2]
[329612362,1718505050552,-500.0,0.00021917,2]
[329612363,1718505050567,-500.0,0.00021917,2]
[329612364,1718505050590,-500.0,0.00021917,2]
[329612365,1718505050603,-500.0,0.00021917,2]
[329612366,1718505050638,-500.0,0.00021917,2]
[329612367,1718505050664,-500.0,0.00021917,2]
[329612368,1718505050709,-500.0,0.00021917,2]
[329612369,1718505050727,-500.0,0.00021917,2]
[329612370,1718505050756,-500.0,0.00021917,2]
[329612371,1718505050767,-524.59355807,0.00021917,2]
[329612372,1718505050778,-500.0,0.00021917,2]
[329612373,1718505050793,-500.0,0.00021917,2]
[329612374,1718505050805,-500.0,0.00021917,2]
[329612375,1718505050820,-500.0,0.00021917,2]
[329612376,1718505050850,-500.0,0.00021917,2]
[329612377,1718505050862,-193.01657607,0.00021917,2]
[329612378,1718505051213,-306.98342393,0.00021917,2]
[329612379,1718505051230,-500.0,0.00021917,2]
[329612380,1718505051255,-158.05944612,0.00021917,2]
[329612381,1718505051280,-341.94055388,0.00021917,2]
[329612382,1718505051292,-500.0,0.00021917,2]
[329612383,1718505051311,-500.0,0.00021917,2]
[329612384,1718505051324,-500.0,0.00021917,2]
[329612385,1718505051337,-500.0,0.00021917,2]
[329612386,1718505051349,-500.0,0.00021917,2]
[329612387,1718505051360,-500.0,0.00021917,2]
[329612388,1718505051371,-500.0,0.00021917,2]
[329612389,1718505051389,-500.0,0.00021917,2]
[329612390,1718505051400,-500.0,0.00021917,2]
[329612391,1718505051418,-500.0,0.00021917,2]
[329612392,1718505051438,-500.0,0.00021917,2]
[329612393,1718505051449,-500.0,0.00021917,2]
[329612394,1718505051462,-500.0,0.00021917,2]
[329612395,1718505051473,-500.0,0.00021917,2]
[329612396,1718505051484,-538.07047988,0.00021917,2]
[329612397,1718505051495,-500.0,0.00021917,2]
[329612398,1718505051520,-518.3827705,0.00021917,2]
[329612399,1718505051531,-500.0,0.00021917,2]
[329612400,1718505051551,-500.0,0.00021917,2]
[329612401,1718505051562,-500.0,0.00021917,2]
[329612402,1718505051573,-500.0,0.00021917,2]
[329612403,1718505051584,-519.99007147,0.00021917,2]
[329612404,1718505051594,-500.0,0.00021917,2]
[329612405,1718505051606,-515.08166814,0.00021917,2]
[329612406,1718505051617,-500.0,0.00021917,2]
[329612407,1718505051628,-420.48274429,0.00021917,2]
[329612420,1718505268819,5660.0,0.00015,10]
[329612426,1718506152181,-162.642962,0.00011677,2]
[329612427,1718506152225,-500.0,0.00011735,2]
[329612428,1718506152273,-300.0,0.00011735,2]
[329612429,1718506152307,-1952.465138,0.00011736,2]
[329612430,1718506163288,-8574.7034677,0.00011736,2]
[329612431,1718506163314,-150.0,0.00011796,2]
[329612432,1718506163343,-1383.0,0.00011798,2]
[329612433,1718506163382,-14224.40771817,0.000118,2]
[329612443,1718506233395,-963.82183622,0.0001425,2]
[329612444,1718506233406,-590.5,0.00018165,2]
[329612445,1718506233418,-150.99,0.00018165,2]
[329612446,1718506233432,-150.99,0.00018165,2]
[329612447,1718506233442,-304.03230402,0.00019504,2]
[329612448,1718506233458,-1000.0,0.00019505,2]
[329612449,1718506233468,-129.40165557,0.00019589,2]
[329612450,1718506233500,-370.58834443,0.00019589,2]
[329612451,1718506233514,-150.0,0.00019589,2]
[329612452,1718506233529,-300.0,0.000198,2]
[329612453,1718506233548,-2494.59153905,0.000198,2]
[329612454,1718506233798,-496.29675969,0.000198,2]
[329612455,1718506234283,-249.11170126,0.000198,2]
[329612456,1718506234294,-786.0,0.000198,2]
[329612457,1718506234306,-172.02,0.00019914,2]
[329612458,1718506234317,-303.53445928,0.0002,2]
[329612459,1718506234333,-3487.25197762,0.0002,2]
[329612460,1718506234356,-766.70047964,0.0002,2]
[329612461,1718506234417,-752.35031756,0.0002,2]
[329612462,1718506234445,-1264.22164607,0.0002,2]
[329612463,1718506234457,-150.0,0.00020004,2]
[329612464,1718506234468,-1000.0,0.00020034,2]
[329612465,1718506234487,-172.93,0.00020048,2]
[329612466,1718506234525,-250.0,0.00020069,2]
[329612467,1718506234558,-250.0,0.00020113,2]
[329612468,1718506234594,-173.7,0.00020119,2]
[329612469,1718506234620,-761.36,0.00020182,2]
[329612470,1718506234633,-590.5,0.00020429,2]
[329612471,1718506234645,-6787.64290422,0.000205,3]
[329612472,1718506234719,-446.45853724,0.000205,3]
[329612473,1718506234749,-351.89855854,0.000205,3]
[329612474,1718506234760,-732.10144154,0.00020768,2]
[329612475,1718506235056,-2101.31285773,0.00020768,2]
[329612476,1718506235112,-1533.16988502,0.00020768,2]
[329612477,1718506235131,-10808.08059513,0.00020768,2]
[329612478,1718506235148,-239.97479825,0.00020768,2]
[329612479,1718506235182,-436.12520175,0.00020819,2]
[329612480,1718506235236,-165.82140147,0.00020819,2]
[329612481,1718506235247,-402.53859853,0.000209,5]
[329612482,1718506235266,-2579.13024288,0.000209,5]
[329612483,1718506235333,-1305.25369963,0.000209,5]
[329612484,1718506235362,-716.81786088,0.000209,5]
[329612485,1718506235447,-442.695,0.000209,5]
[329612486,1718506235504,-731.32,0.000209,5]
[329612487,1718506235522,-606.4,0.000209,5]
[329612488,1718506235536,-2009.17611856,0.000209,5]
[329612489,1718506235565,-284.65867738,0.000209,5]
[329612493,1718506239035,-1624.56817508,0.000209,5]
[329612494,1718506239476,-1042.44162706,0.000209,5]
[329612495,1718506239488,-1250.0,0.00021,2]
[329612496,1718506239526,-151.0,0.00021021,2]
[329612497,1718506239539,-209.33640145,0.00021038,2]
[329612498,1718506239551,-202.011918,0.000211,2]
[329612499,1718506239565,-151.0,0.00021593,2]
[329612500,1718506239576,-200.0,0.000216,7]
[329612501,1718506239592,-355.0,0.000216,2]
[329612502,1718506239611,-1000.0,0.000216,2]
[329612503,1718506239627,-224.0,0.000216,2]
[329612504,1718506239652,-2504.6158946,0.00021617,2]
[329612505,1718506239833,-235.1260054,0.00021617,2]
[329612506,1718506239848,-500.0,0.000217,7]
[329612508,1718506239878,-1526.06233,0.000217,2]
[329612511,1718506239910,-155.17409669,0.00021715,2]
[329612513,1718506239930,-2824.58309854,0.00021715,2]
[329612515,1718506239968,-215.77644711,0.00021715,2]
[329612516,1718506239982,-155.0,0.00021715,2]
[329612517,1718506240001,-7616.60582898,0.00021715,2]
[329612518,1718506240026,-638.44683362,0.00021716,2]
[329612519,1718506240037,-20403.19585597,0.00021717,2]
[329612643,1718506243080,-509.999985,0.00021717,2]
[329612678,1718506243711,-333.58587463,0.00021717,2]
[329612744,1718506245041,-620.1651035,0.00021717,2]
[329612764,1718506245498,-684.82863503,0.00021717,2]
[329612774,1718506245711,-16158.34393364,0.00021717,2]
[329612776,1718506245749,-20913.8813418,0.00021717,2]
[329612780,1718506245808,-4704.39267043,0.00021717,2]
[329612782,1718506245833,-404.58111487,0.0002173,2]
[329612784,1718506245849,-800.0,0.000218,7]
[329612787,1718506245880,-875.8728,0.000218,2]
[329612788,1718506245913,-12150.2888,0.00021815,2]
[329612790,1718506245944,-324.45517274,0.00021817,2]
[329612792,1718506245973,-4305.03373454,0.00021818,2]
[329612794,1718506245996,-170.41117185,0.00021818,2]
[329612797,1718506246031,-1000.0,0.0002189,2]
[329612799,1718506246045,-1000.0,0.0002189,2]
[329612801,1718506246075,-1000.0,0.0002189,2]
[329612803,1718506246088,-1000.0,0.0002189,2]
[329612805,1718506246105,-1000.0,0.0002189,2]
[329612806,1718506246122,-1000.0,0.0002189,2]
[329612808,1718506246148,-1000.0,0.000219,7]
[329612810,1718506246172,-979.0,0.000219,4]
[329612813,1718506246194,-1789.0,0.000219,2]
[329612815,1718506246246,-16280.04672272,0.00021917,2]
[329612818,1718506246273,-500.0,0.00021917,2]
[329612820,1718506246298,-500.0,0.00021917,2]
[329612821,1718506246320,-500.0,0.00021917,2]
[329612823,1718506246370,-275.53244087,0.00021917,2]
[329612825,1718506246394,-500.0,0.00021917,2]
[329612828,1718506246477,-500.0,0.00021917,2]
[329612830,1718506246488,-500.0,0.00021917,2]
[329612832,1718506246508,-500.0,0.00021917,2]
[329612834,1718506246527,-1048.34273564,0.00021917,2]
[329612836,1718506246540,-35024.5556957,0.00021917,2]
[329612839,1718506246566,-447.56672219,0.00021917,2]
[329612841,1718506246602,-500.0,0.00021917,2]
[329612843,1718506246613,-500.0,0.00021917,2]
[329612845,1718506246628,-545.68534576,0.00021917,2]
[329612846,1718506246640,-587.53108696,0.00021917,2]
[329612848,1718506246666,-500.0,0.00021917,2]
[329612851,1718506246680,-500.0,0.00021917,2]
[329612852,1718506246702,-518.90686584,0.00021917,2]
[329612854,1718506246726,-500.0,0.00021917,2]
[329612856,1718506246743,-500.0,0.00021917,2]
[329612858,1718506246759,-500.0,0.00021917,2]
[329612861,1718506246775,-486.688549,0.00021917,2]
[329612863,1718506246802,-500.0,0.00021917,2]
[329612865,1718506246821,-500.0,0.00021917,2]
[329612866,1718506246833,-500.0,0.00021917,2]
[329612868,1718506246848,-500.0,0.00021917,2]
[329612870,1718506246861,-500.0,0.00021917,2]
[329612872,1718506246873,-500.0,0.00021917,2]
[329612874,1718506246905,-508.17000509,0.00021917,2]
[329612876,1718506246918,-626.55,0.00021917,2]
[329612878,1718506246936,-522.77263689,0.00021917,2]
[329612879,1718506246953,-460.09902103,0.00021917,2]
[329612882,1718506246994,-500.0,0.00021917,2]
[329612884,1718506247022,-500.0,0.00021917,2]
[329612885,1718506247036,-500.0,0.00021917,2]
[329612887,1718506247052,-500.0,0.00021917,2]
[329612888,1718506247077,-500.0,0.00021917,2]
[329612890,1718506247088,-500.0,0.00021917,2]
[329612891,1718506247105,-500.0,0.00021917,2]
[329612893,1718506247149,-500.0,0.00021917,2]
[329612895,1718506247173,-920.05,0.00021917,2]
[329612897,1718506247209,-500.0,0.00021917,2]
[329612899,1718506247222,-500.0,0.00021917,2]
[329612901,1718506247270,-500.0,0.00021917,2]
[329612903,1718506247310,-500.0,0.00021917,2]
[329612905,1718506247325,-1099.72,0.00021917,2]
[329612907,1718506247349,-500.0,0.00021917,2]
[329612909,1718506247377,-500.0,0.00021917,2]
[329612911,1718506247389,-500.0,0.00021917,2]
[329612913,1718506247403,-500.0,0.00021917,2]
[329612915,1718506247424,-500.0,0.00021917,2]
[329612917,1718506247438,-563.75,0.00021917,2]
[329612919,1718506247473,-500.0,0.00021917,2]
[329612921,1718506247485,-500.0,0.00021917,2]
[329612923,1718506247504,-500.0,0.00021917,2]
[329612925,1718506247516,-500.0,0.00021917,2]
[329612926,1718506247527,-306.26759002,0.00021917,2]
[329612929,1718506247553,-500.0,0.00021917,2]
[329612931,1718506247576,-500.0,0.00021917,2]
[329612933,1718506247596,-500.0,0.00021917,2]
[329612938,1718506247633,-500.0,0.00021917,2]
[329612941,1718506247654,-500.0,0.00021917,2]
[329612945,1718506247694,-500.0,0.00021917,2]
[329612948,1718506247717,-500.0,0.00021917,2]
[329612951,1718506247729,-500.0,0.00021917,2]
[329612954,1718506247747,-500.0,0.00021917,2]
[329612956,1718506247761,-500.0,0.00021917,2]
[329612959,1718506247778,-155.36572876,0.00021917,2]
[329612964,1718506247801,-500.0,0.00021917,2]
[329612967,1718506247818,-500.0,0.00021917,2]
[329612972,1718506247875,-500.0,0.00021917,2]
[329612975,1718506247888,-500.0,0.00021917,2]
[329612976,1718506247905,-500.0,0.00021917,2]
[329612981,1718506247929,-514.91577987,0.00021917,2]
[329612983,1718506247959,-500.0,0.00021917,2]
[329612985,1718506247984,-573.58,0.00021917,2]
[329612986,1718506248004,-500.0,0.00021917,2]
[329612987,1718506248025,-592.68,0.00021917,2]
[329612988,1718506248036,-500.0,0.00021917,2]
[329612989,1718506248048,-732.87,0.00021917,2]
[329612990,1718506248059,-500.0,0.00021917,2]
[329612991,1718506248072,-500.0,0.00021917,2]
[329612992,1718506248083,-500.0,0.00021917,2]
[329612994,1718506248094,-500.0,0.00021917,2]
[329612995,1718506248117,-500.0,0.00021917,2]
[329612998,1718506248132,-315.65360274,0.00021917,2]
[329613000,1718506248148,-500.0,0.00021917,2]
[329613002,1718506248177,-500.0,0.00021917,2]
[329613004,1718506248192,-500.0,0.00021917,2]
[329613006,1718506248205,-567.17,0.00021917,2]
[329613007,1718506248223,-500.0,0.00021917,2]
[329613009,1718506248234,-500.0,0.00021917,2]
[329613011,1718506248263,-500.0,0.00021917,2]
[329613013,1718506248285,-500.0,0.00021917,2]
[329613015,1718506248305,-500.0,0.00021917,2]
[329613017,1718506248333,-562.1650538,0.00021917,2]
[329613019,1718506248350,-500.0,0.00021917,2]
[329613021,1718506248367,-500.0,0.00021917,2]
[329613023,1718506248381,-529.78,0.00021917,2]
[329613025,1718506248395,-500.0,0.00021917,2]
[329613027,1718506248419,-226.32754333,0.00021917,2]
[329613033,1718506248481,-273.67245667,0.00021917,2]
[329613035,1718506248492,-500.0,0.00021917,2]
[329613037,1718506248505,-304.5672412,0.00021917,2]
[329613038,1718506248524,-195.4327588,0.00021917,2]
[329613040,1718506248536,-558.23184965,0.00021917,2]
[329613053,1718506248813,-500.0,0.00021917,2]
[329613055,1718506248824,-500.0,0.00021917,2]
[329613057,1718506248838,-500.0,0.00021917,2]
[329613059,1718506248883,-463.1713835,0.00021917,2]
[329613061,1718506248902,-36.8286165,0.00021917,2]
[329613063,1718506248923,-500.0,0.00021917,2]
[329613065,1718506248938,-500.0,0.00021917,2]
[329613067,1718506248960,-301.64543737,0.00021917,2]
[329613069,1718506248986,-500.0,0.00021917,2]
[329613071,1718506248999,-82.78284543,0.00021917,2]
[329613088,1718506249325,-592.39715457,0.00021917,2]
[329613090,1718506249350,-255.67010143,0.00021917,2]
[329613112,1718506249688,-244.32989857,0.00021917,2]
[329613113,1718506249701,-434.63266488,0.00021917,2]
[329613116,1718506249712,-421.93743605,0.00021917,2]
[329613137,1718506250074,-78.06256395,0.00021917,2]
[329613139,1718506250089,-500.0,0.00021917,2]
[329613141,1718506250113,-500.0,0.00021917,2]
[329613143,1718506250131,-500.0,0.00021917,2]
[329613145,1718506250168,-501.08,0.00021917,2]
[329613146,1718506250192,-500.0,0.00021917,2]
[329613148,1718506250223,-555.65565291,0.00021917,2]
[329613149,1718506250248,-500.0,0.00021917,2]
[329613151,1718506250260,-500.0,0.00021917,2]
[329613152,1718506250288,-60.80919255,0.00021917,2]
[329613235,1718506252160,1900.94656563,0.000118,2]
[329613236,1718506252212,28164.75486783,0.000118,2]
[329613239,1718506351689,453.33042599,0.00010488,2]
[329613240,1718506387100,263.13724632,0.00010488,2]